bitfinex/quotes_SOLUSD_20240905
["timestamp","ask_amount","ask_price","bid_price","bid_amount"]
[1725507669286,45.0,132.05,131.96,16.1911]
[1725507670395,7.5757,132.0,131.96,16.1911]
[1725507671617,7.5757,132.0,131.96,23.7691]
[1725507671800,7.5757,132.0,131.96,16.1911]
[1725507673593,7.5763,131.99,131.96,16.1911]
[1725507676311,48.23708295,132.05,131.96,23.7691]
[1725507676507,7.5752,132.01,131.97,7.5773]
[1725507678208,7.5752,132.01,131.96,23.769]
[1725507679301,7.5747,132.02,131.98,7.5767]
[1725507679496,7.5741,132.03,131.99,6.4535]
[1725507679692,7.5735,132.04,131.99,14.0297]
[1725507679891,22.8204,132.1,132.0,15.7112]
[1725507679892,72.8204,132.1,132.0,15.7112]
[1725507681116,7.5741,132.03,132.0,15.7112]
[1725507685190,7.5751,132.01,132.0,15.7112]
[1725507689017,7.5743,132.03,132.0,15.7112]
[1725507689323,7.5747,132.02,132.0,15.7112]
[1725507690006,72.8204,132.1,132.0,15.7112]
[1725507690007,7.5741,132.03,132.0,15.7112]
[1725507695608,7.5746,132.02,132.0,15.7112]
[1725507697630,7.5741,132.03,132.0,15.7112]
[1725507702523,7.5746,132.02,132.0,15.7112]
[1725507705215,7.5742,132.03,132.0,15.7112]
[1725507708216,7.5746,132.02,132.0,15.7112]
[1725507708815,7.5741,132.03,132.0,15.7112]
[1725507709133,7.5746,132.02,132.0,15.7112]
[1725507711036,76.0452803,132.1,132.0,15.7112]
[1725507711037,7.5741,132.03,132.0,15.7112]
[1725507711226,26.0452803,132.1,132.01,7.575]
[1725507711227,7.5724,132.06,132.01,7.575]
[1725507711427,7.5724,132.06,132.02,1.51460739]
[1725507711731,7.5724,132.06,132.01,7.575]
[1725507712114,7.5724,132.06,132.02,1.51460733]
[1725507712933,3.2248803,132.1,132.02,7.5745]
[1725507713121,7.5718,132.07,132.02,7.5745]
[1725507713526,7.5711,132.09,132.03,7.5739]
[1725507713730,25.87102054,132.13,132.03,7.5739]
[1725507714943,7.5704,132.1,132.04,40.4798]
[1725507715243,4.16362054,132.13,132.04,40.4798]
[1725507715411,4.16362054,132.13,132.05,1.51396375]
[1725507715616,7.5689,132.12,132.06,7.5722]
[1725507716231,7.5696,132.11,132.06,7.5722]
[1725507718847,45.0,132.1,132.04,40.4798]
[1725507719215,7.5716,132.08,132.04,21.5464]
[1725507723840,7.5707,132.09,132.04,29.1197]
[1725507724028,7.5707,132.09,132.05,1.51422232]
[1725507724231,7.5707,132.09,132.04,29.1197]
[1725507724845,7.5701,132.1,132.05,9.08697325]
[1725507725642,7.569,132.12,132.07,7.5716]
[1725507725934,7.569,132.12,132.08,1.51390778]
[1725507726323,7.569,132.12,132.07,7.5716]
[1725507726523,7.5694,132.11,132.06,7.5722]
[1725507727723,7.5706,132.09,132.05,18.931]
[1725507728131,7.5706,132.09,132.05,26.5037]
[1725507728947,7.5718,132.07,132.04,21.5464]
[1725507729327,7.5712,132.08,132.04,21.5464]
[1725507730644,7.5718,132.07,132.04,21.5464]
[1725507731533,7.5713,132.08,132.04,21.5464]
[1725507733439,7.5706,132.09,132.04,29.1198]
[1725507735242,7.5712,132.08,132.04,21.5464]
[1725507737148,54.10221502,132.13,132.01,22.6941]
[1725507737446,7.5741,132.03,132.01,22.6941]
[1725507738933,50.0,132.11,132.01,22.6941]
[1725507739133,45.0,132.1,132.01,22.6941]
[1725507739532,7.5729,132.05,132.01,22.6941]
[1725507740556,7.5722,132.07,132.01,22.6941]
[1725507742250,7.5722,132.07,132.02,7.5744]
[1725507742649,7.5722,132.07,132.03,1.51441055]
[1725507743156,7.5722,132.07,132.02,7.5744]
[1725507743828,7.5722,132.07,132.03,1.51436924]
[1725507744227,4.18544014,132.13,132.03,7.5736]
[1725507744466,7.5699,132.11,132.04,6.1079]
[1725507744632,7.5689,132.12,132.06,15.261]
[1725507744948,7.5689,132.12,132.06,22.8332]
[1725507745152,7.5696,132.11,132.06,15.261]
[1725507746357,4.18544014,132.13,132.06,15.261]
[1725507746551,45.0,132.12,132.06,15.261]
[1725507747252,7.5705,132.09,132.06,15.261]
[1725507748966,7.5705,132.09,132.04,32.6135]
[1725507748967,45.0,132.12,132.04,6.1079]
[1725507749253,7.5725,132.06,132.04,6.1079]
[1725507750857,7.573,132.05,132.03,15.7923]
[1725507753251,7.5724,132.06,132.03,15.7923]
[1725507753659,7.5729,132.05,132.03,15.7923]
[1725507757549,7.5724,132.06,132.03,15.7923]
[1725507758854,7.5717,132.07,132.03,15.7923]
[1725507760157,7.5717,132.07,132.03,23.3663]
[1725507760353,16.1737,132.12,132.03,34.7273]
[1725507760856,7.5711,132.09,132.04,7.5734]
[1725507761061,7.5712,132.08,132.03,42.3012]
[1725507761437,19.37021058,132.12,132.03,15.7923]
[1725507761650,7.5723,132.06,132.03,15.7923]
[1725507763661,7.5718,132.07,132.03,15.7923]
[1725507766467,7.5712,132.08,132.03,23.3661]
[1725507767668,7.5706,132.09,132.04,7.5732]
[1725507768169,7.5712,132.08,132.03,23.3662]
[1725507769851,7.5706,132.09,132.03,15.7923]
[1725507770169,7.5701,132.1,132.05,7.5728]
[1725507770366,7.5701,132.1,132.06,6.0143]
[1725507771745,7.5701,132.1,132.06,13.5865]
[1725507772757,7.5695,132.11,132.06,13.5865]
[1725507775372,7.5701,132.1,132.06,6.0143]
[1725507776071,4.08531038,132.13,132.06,6.0143]
[1725507776271,7.5706,132.09,132.06,6.0143]
[1725507778174,7.5695,132.11,132.06,6.0143]
[1725507778471,7.5702,132.1,132.06,13.5864]
[1725507779460,7.5702,132.1,132.06,6.0143]
[1725507783473,7.5702,132.1,132.06,13.5865]
[1725507783975,8.4234503,132.13,132.08,7.5709]
[1725507786580,7.5689,132.12,132.07,16.5878]
[1725507786883,7.5698,132.11,132.07,16.5878]
[1725507789761,8.4238503,132.13,132.08,1.51397298]
[1725507789967,0.8551503,132.13,132.08,9.08467298]
[1725507790164,0.8551503,132.13,132.08,7.5707]
[1725507790389,7.5689,132.12,132.07,16.5878]
[1725507791105,7.5689,132.12,132.07,24.1593]
[1725507791688,7.5695,132.11,132.07,16.5878]
[1725507793370,7.5689,132.12,132.07,16.5878]
[1725507793967,8.4235503,132.13,132.08,7.571]
[1725507795580,0.8551503,132.13,132.08,7.571]
[1725507796663,0.8551503,132.13,132.09,7.5703]
[1725507797680,8.4234503,132.13,132.08,7.571]
[1725507797871,8.4234503,132.13,132.07,16.5878]
[1725507797872,7.5688,132.12,132.07,24.1594]
[1725507798268,8.4235503,132.13,132.08,7.5711]
[1725507799185,8.4235503,132.13,132.07,16.5878]
[1725507799186,0.8551503,132.13,132.09,7.5705]
[1725507799573,0.8551503,132.13,132.1,1.51353512]
[1725507799786,0.8551503,132.13,132.11,1.51353935]
[1725507800394,0.8551503,132.13,132.11,30.0]
[1725507805598,0.8551503,132.13,132.12,15.2903]
[1725507805892,0.8551503,132.13,132.12,45.2903]
[1725507808489,0.8551503,132.13,132.12,52.8591]
[1725507808996,0.8551503,132.13,132.12,97.8591]
[1725507809302,7.5643,132.2,132.13,18.9197]
[1725507809487,7.5643,132.2,132.14,51.2675]
[1725507810603,3.25289097,132.23,132.14,6.2675]
[1725507810793,7.566,132.17,132.14,6.2675]
[1725507810993,7.5654,132.18,132.14,36.2675]
[1725507812195,7.566,132.17,132.14,36.2675]
[1725507812400,3.2677415,132.21,132.14,30.0]
[1725507812701,7.5679,132.14,132.12,15.2903]
[1725507813276,95.0,132.22,132.11,6.4205]
[1725507814084,7.5684,132.13,132.11,6.4205]
[1725507814397,7.5677,132.14,132.11,6.4205]
[1725507814589,7.567,132.16,132.11,6.4205]
[1725507815701,7.5674,132.15,132.11,6.4205]
[1725507817407,7.5677,132.14,132.11,6.4205]
[1725507817594,7.5683,132.13,132.09,15.8263]
[1725507817793,50.0,132.2,132.09,15.8263]
[1725507818105,45.0,132.19,132.09,15.8263]
[1725507819406,15.2365,132.21,132.09,15.8263]
[1725507819619,15.2365,132.21,132.1,39.08316916]
[1725507819790,7.5664,132.17,132.11,7.5694]
[1725507820102,7.5678,132.14,132.1,30.0]
[1725507820293,7.5672,132.15,132.1,30.0]
[1725507820887,7.5666,132.16,132.1,7.5699]
[1725507821088,15.2365,132.21,132.09,42.3219]
[1725507821089,7.5673,132.15,132.09,42.3219]
[1725507825808,7.5673,132.15,132.1,7.57]
[1725507831310,7.5665,132.16,132.11,7.5689]
[1725507831513,15.2365,132.21,132.12,26.4905]
[1725507831713,7.5665,132.16,132.12,18.9217]
[1725507834304,15.2365,132.21,132.13,6.662]
[1725507834503,15.2365,132.21,132.14,16.5263]
[1725507834504,45.0,132.2,132.14,16.5263]
[1725507836705,16.5227,132.24,132.14,16.5263]
[1725507837027,16.5227,132.24,132.14,24.094]
[1725507837200,16.5227,132.24,132.15,7.5669]
[1725507838400,7.1332503,132.26,132.15,7.5669]
[1725507839198,0.8551503,132.26,132.15,37.5669]
[1725507840810,45.8551503,132.26,132.15,7.5669]
[1725507841420,7.5645,132.2,132.15,7.5669]
[1725507841726,7.5659,132.18,132.14,16.5263]
[1725507841901,7.5649,132.19,132.14,16.5263]
[1725507842404,49.09893292,132.26,132.14,16.5263]
[1725507842809,7.5649,132.19,132.14,16.5263]
[1725507843608,7.5649,132.19,132.15,30.0]
[1725507844426,7.5649,132.19,132.14,16.5263]
[1725507845505,7.5659,132.18,132.14,16.5263]
[1725507849712,3.26319544,132.2,132.14,16.5263]
[1725507849914,7.5671,132.15,132.14,16.5263]
[1725507851511,7.5666,132.16,132.14,16.5263]
[1725507852229,7.566,132.17,132.14,16.5263]
[1725507852610,7.5654,132.18,132.14,16.5263]
[1725507853011,6.5229,132.24,132.14,24.0939]
[1725507853012,7.5649,132.19,132.14,24.0939]
[1725507854530,3.28650979,132.24,132.16,21.3306]
[1725507854720,0.8551503,132.26,132.17,1.51266815]
[1725507854919,0.8551503,132.26,132.18,1.51261825]
[1725507855627,0.8551503,132.26,132.16,21.3306]
[1725507856304,7.5632,132.22,132.17,7.5659]
[1725507857637,7.5632,132.22,132.18,1.51259417]
[1725507858136,7.5626,132.23,132.18,9.07789417]
[1725507858434,7.5626,132.23,132.18,39.07789417]
[1725507858813,7.5626,132.23,132.18,37.5653]
[1725507860033,7.5626,132.23,132.18,7.5653]
[1725507860536,4.08602092,132.26,132.17,26.48]
[1725507860716,7.5631,132.23,132.17,26.48]
[1725507862416,7.5631,132.23,132.18,7.5652]
[1725507863521,7.5615,132.25,132.21,21.7295]
[1725507863839,7.562,132.24,132.21,21.7295]
[1725507864338,7.5615,132.25,132.21,21.7295]
[1725507865510,0.8551503,132.26,132.22,9.07534265]
[1725507867137,0.8551503,132.26,132.23,7.5624]
[1725507867433,0.8551503,132.26,132.25,7.5614]
[1725507867642,0.8551503,132.26,132.25,9.07317035]
[1725507867949,0.8551503,132.26,132.24,21.7295]
[1725507868620,0.8551503,132.26,132.25,30.0]
[1725507868822,0.8551503,132.26,132.24,21.7295]
[1725507877445,0.8551503,132.26,132.24,29.2913]
[1725507877835,0.8551503,132.26,132.25,7.5614]
[1725507878145,0.8551503,132.26,132.25,9.07331099]
[1725507878345,0.8551503,132.26,132.25,7.5614]
[1725507879745,0.8551503,132.26,132.25,37.5614]
[1725507882627,0.8551503,132.26,132.25,7.5614]
[1725507883169,0.8551503,132.26,132.25,52.5614]
[1725507883837,0.8551503,132.26,132.25,82.5614]
[1725507886349,7.5563,132.34,132.27,18.9004]
[1725507886548,7.5563,132.34,132.27,48.9004]
[1725507886750,7.5563,132.34,132.28,7.5597]
[1725507888047,15.6548,132.37,132.28,7.5597]
[1725507888048,7.5569,132.33,132.28,7.5597]
[1725507888850,7.5563,132.34,132.28,7.5597]
[1725507889136,7.5563,132.34,132.27,48.9004]
[1725507889137,7.5563,132.34,132.29,7.559]
[1725507890859,7.5563,132.34,132.29,22.6357]
[1725507891051,7.5563,132.34,132.29,29.2142]
[1725507891963,7.5569,132.33,132.29,21.6552]
[1725507892187,7.5574,132.32,132.27,56.4605]
[1725507892342,7.5574,132.32,132.27,18.9004]
[1725507892753,7.5569,132.33,132.27,26.4604]
[1725507893145,7.5569,132.33,132.28,7.5595]
[1725507893647,7.5574,132.32,132.27,26.4605]
[1725507894045,56.0888,132.38,132.26,16.0452]
[1725507894257,15.5011,132.35,132.26,16.0452]
[1725507894440,7.5581,132.31,132.26,16.0452]
[1725507897063,7.5581,132.31,132.26,23.6058]
[1725507900844,3.23823475,132.33,132.25,6.2208]
[1725507901047,45.0,132.34,132.25,6.2208]
[1725507901360,7.5602,132.28,132.25,6.2208]
[1725507901565,7.5608,132.26,132.23,15.0027]
[1725507901769,7.5614,132.25,132.24,30.0]
[1725507902066,15.1919,132.3,132.18,14.0316]
[1725507902067,7.5626,132.23,132.18,14.0316]
[1725507902564,7.5626,132.23,132.18,6.4662]
[1725507902758,6.0113,132.29,132.18,6.4662]
[1725507902961,45.0,132.28,132.18,6.4662]
[1725507903266,45.0,132.28,132.19,7.5648]
[1725507903467,45.0,132.28,132.19,30.0]
[1725507903663,7.5634,132.22,132.17,7.5659]
[1725507905161,45.0,132.28,132.17,7.5659]
[1725507905768,7.5627,132.23,132.17,7.5659]
[1725507905941,7.562,132.24,132.18,52.5654]
[1725507906142,7.5601,132.28,132.2,18.9098]
[1725507906448,15.3206,132.35,132.2,18.9098]
[1725507906654,50.0,132.34,132.2,18.9098]
[1725507906857,7.561,132.26,132.2,26.474]
[1725507907039,7.5603,132.27,132.21,9.07573819]
[1725507907244,15.3206,132.35,132.23,18.9061]
[1725507907245,7.5584,132.31,132.23,18.9061]
[1725507907462,15.3206,132.35,132.25,22.7895]
[1725507908242,7.5568,132.33,132.27,7.5602]
[1725507911155,7.5562,132.35,132.28,18.8991]
[1725507911358,3.23920836,132.37,132.31,7.5579]
[1725507911359,10.79430836,132.37,132.31,7.5579]
[1725507911669,7.5551,132.36,132.32,1.5110457]
[1725507912146,7.5545,132.37,132.31,7.5578]
[1725507913364,3.27782832,132.4,132.32,30.4196]
[1725507913966,15.4025,132.42,132.32,30.4196]
[1725507914266,7.5542,132.38,132.32,30.4196]
[1725507914668,7.5547,132.37,132.32,30.4196]
[1725507916646,8.4090503,132.39,132.33,1.51087493]
[1725507917242,8.4090503,132.39,132.32,41.7545]
[1725507917664,8.4090503,132.39,132.33,30.0]
[1725507917876,0.8551503,132.39,132.33,30.0]
[1725507918861,0.8551503,132.39,132.35,7.5556]
[1725507919064,0.8551503,132.39,132.36,1.51062601]
[1725507919376,0.8551503,132.39,132.35,7.5556]
[1725507920051,0.8551503,132.39,132.34,18.8894]
[1725507920254,0.8551503,132.39,132.35,76.51037401]
[1725507920575,0.8551503,132.39,132.35,75.0]
[1725507920768,0.8551503,132.39,132.35,37.5551]
[1725507921162,0.8551503,132.39,132.36,7.555]
[1725507921460,0.8551503,132.39,132.36,37.555]
[1725507922476,0.8551503,132.39,132.37,22.0967]
[1725507922656,0.8551503,132.39,132.36,30.0]
[1725507922851,0.8551503,132.39,132.35,7.5556]
[1725507923167,0.8551503,132.39,132.34,18.8894]
[1725507923475,0.8551503,132.39,132.35,30.0]
[1725507923679,8.4090503,132.39,132.33,29.7652]
[1725507924366,7.5541,132.38,132.33,29.7652]
[1725507925270,8.4085503,132.39,132.33,29.7652]
[1725507926885,8.4085503,132.39,132.34,7.5562]
[1725507928361,8.4085503,132.39,132.33,22.2085]
[1725507928362,0.8551503,132.39,132.29,41.0883]
[1725507928576,0.8551503,132.39,132.29,48.6469]
[1725507928577,7.5562,132.35,132.29,48.6469]
[1725507928966,7.5552,132.36,132.29,48.6469]
[1725507929497,7.5543,132.38,132.32,7.5573]
[1725507929957,7.5546,132.37,132.31,7.5579]
[1725507930371,7.5546,132.37,132.32,30.0]
[1725507931168,7.5546,132.37,132.31,7.5579]
[1725507932363,7.5546,132.37,132.32,7.5574]
[1725507932888,8.4086503,132.39,132.33,18.8918]
[1725507933188,7.5541,132.38,132.33,18.8918]
[1725507933763,0.8551503,132.39,132.33,18.8918]
[1725507933964,8.4090503,132.39,132.33,18.8918]
[1725507934686,8.4090503,132.39,132.33,26.4484]
[1725507934878,8.4090503,132.39,132.34,1.51069201]
[1725507935077,8.4090503,132.39,132.33,26.4484]
[1725507936285,0.8551503,132.39,132.34,30.0]
[1725507937471,0.8551503,132.39,132.33,26.4486]
[1725507939571,0.8551503,132.39,132.34,7.556]
[1725507939878,0.8551503,132.39,132.34,37.556]
[1725507940968,0.8551503,132.39,132.34,52.6395]
[1725507941169,0.8551503,132.39,132.35,7.5553]
[1725507941484,0.8551503,132.39,132.35,37.5553]
[1725507942364,8.4085503,132.39,132.35,30.0]
[1725507942571,8.4085503,132.39,132.33,18.8918]
[1725507942572,0.8551503,132.39,132.33,18.8918]
[1725507942772,8.4085503,132.39,132.34,37.5562]
[1725507943886,0.8551503,132.39,132.34,30.0]
[1725507944080,0.8551503,132.39,132.36,7.5546]
[1725507944282,0.8551503,132.39,132.35,26.4437]
[1725507945472,0.8551503,132.39,132.36,7.5551]
[1725507946493,0.8551503,132.39,132.35,26.4437]
[1725507947596,0.8551503,132.39,132.35,40.2714]
[1725507947772,0.8551503,132.39,132.36,7.555]
[1725507948093,0.8551503,132.39,132.38,7.554]
[1725507948696,0.8551503,132.39,132.38,37.554]
[1725507948991,0.8551503,132.39,132.38,82.554]
[1725507949507,0.8551503,132.39,132.38,37.554]
[1725507950497,0.8551503,132.39,132.38,82.554]
[1725507950676,0.8551503,132.39,132.38,37.554]
[1725507951867,0.8551503,132.39,132.38,82.554]
[1725507952073,0.8551503,132.39,132.38,37.554]
[1725507952892,0.8551503,132.39,132.38,30.0]
[1725507953095,0.8551503,132.39,132.36,7.5546]
[1725507953275,0.8551503,132.39,132.37,30.0]
[1725507954482,0.8551503,132.39,132.37,37.5541]
[1725507954700,0.8551503,132.39,132.37,30.0]
[1725507954989,0.8551503,132.39,132.36,7.555]
[1725507955192,0.8551503,132.39,132.37,1.51037895]
[1725507956277,0.8551503,132.39,132.35,26.4438]
[1725507957491,0.8551503,132.39,132.36,7.5549]
[1725507957682,0.8551503,132.39,132.35,26.4438]
[1725507959477,0.8551503,132.39,132.32,9.10035765]
[1725507959478,0.8551503,132.39,132.33,7.5563]
[1725507959678,0.8551503,132.39,132.34,30.0]
[1725507960379,8.4086503,132.39,132.34,37.5561]
[1725507960695,8.4086503,132.39,132.35,1.51064758]
[1725507960893,8.4086503,132.39,132.36,1.51064854]
[1725507961192,0.8551503,132.39,132.36,7.5551]
[1725507961377,0.8551503,132.39,132.37,1.51039659]
[1725507961784,0.8551503,132.39,132.36,7.5551]
[1725507964191,0.8551503,132.39,132.34,48.8896]
[1725507964694,0.8551503,132.39,132.34,56.4457]
[1725507964695,8.4090503,132.39,132.34,56.4457]
[1725507965695,8.4090503,132.39,132.34,26.4457]
[1725507966887,0.8551503,132.39,132.35,7.5555]
[1725507967794,7.5547,132.37,132.32,7.5573]
[1725507969392,16.5275,132.38,132.31,18.895]
[1725507969890,7.5546,132.37,132.31,18.895]
[1725507970997,7.5546,132.37,132.32,30.0]
[1725507971493,16.5275,132.38,132.32,37.5573]
[1725507971680,16.5275,132.38,132.32,30.0]
[1725507971875,16.5275,132.38,132.33,1.5110359]
[1725507972089,16.5275,132.38,132.32,30.0]
[1725507974396,45.0,132.37,132.32,30.0]
[1725507974899,45.0,132.37,132.28,18.8991]
[1725507975079,45.0,132.37,132.29,2.98025913]
[1725507975402,15.7826,132.33,132.26,2.98144945]
[1725507975583,7.5575,132.32,132.27,30.0]
[1725507976302,7.5575,132.32,132.27,37.5602]
[1725507981002,23.3395,132.33,132.27,37.5602]
[1725507981311,23.3395,132.33,132.28,7.5596]
[1725507985885,7.5574,132.32,132.27,7.5601]
[1725507988209,48.31932843,132.37,132.27,7.5601]
[1725507988210,16.1181,132.36,132.28,1.51149006]
[1725507988887,16.1181,132.36,132.27,18.8997]
[1725507989090,16.1181,132.36,132.28,1.51129295]
[1725507989290,7.5563,132.34,132.29,7.5591]
[1725507990907,16.1181,132.36,132.29,7.5591]
[1725507993104,16.1181,132.36,132.27,26.4594]
[1725507993300,16.1181,132.36,132.28,30.0]
[1725507993505,45.0,132.35,132.28,30.0]
[1725507994108,45.0,132.35,132.27,26.4594]
[1725507996187,45.0,132.35,132.27,18.8997]
[1725507996692,7.5581,132.31,132.27,18.8997]
[1725507997192,7.5581,132.31,132.27,26.4599]
[1725507997716,7.5581,132.31,132.27,18.8997]
[1725507998215,7.5581,132.31,132.27,26.4599]
[1725507998707,7.5575,132.32,132.27,26.4599]
[1725507999292,16.1181,132.36,132.27,18.8997]
[1725507999493,7.5567,132.34,132.29,7.559]
[1725508005220,7.5569,132.33,132.29,7.559]
[1725508005522,7.5569,132.33,132.28,7.5596]
[1725508008020,7.5577,132.32,132.27,26.4599]
[1725508008410,7.5577,132.32,132.28,1.51154278]
[1725508008617,7.5577,132.32,132.27,26.4599]
[1725508009414,7.5577,132.32,132.28,1.5114869]
[1725508010022,7.5577,132.32,132.27,26.4599]
[1725508010220,21.6694,132.35,132.25,2.98165209]
[1725508010418,21.6694,132.35,132.22,6.1519]
[1725508010419,7.5607,132.27,132.22,6.1519]
[1725508010908,7.5609,132.26,132.22,6.1519]
[1725508011107,7.5603,132.27,132.22,6.1519]
[1725508012022,7.5609,132.26,132.22,6.1519]
[1725508012417,7.5609,132.26,132.2,16.0968]
[1725508013528,7.5614,132.25,132.2,16.0968]
[1725508013730,7.5621,132.24,132.2,16.0968]
[1725508013914,6.2027,132.3,132.2,16.0968]
[1725508014111,45.0,132.29,132.2,16.0968]
[1725508015208,7.5625,132.23,132.2,16.0968]
[1725508016327,15.4047,132.28,132.16,15.7032]
[1725508016534,7.5642,132.2,132.16,15.7032]
[1725508016830,7.5648,132.2,132.16,15.7032]
[1725508017131,6.2292,132.24,132.16,15.7032]
[1725508017332,45.0,132.23,132.16,15.7032]
[1725508020212,60.1693,132.23,132.15,6.2022]
[1725508020640,110.1693,132.23,132.13,15.5914]
[1725508021315,110.1693,132.23,132.06,37.8592]
[1725508021316,110.1693,132.23,132.09,28.9295]
[1725508021516,110.1693,132.23,132.1,7.57]
[1725508021720,110.1693,132.23,132.11,1.51334369]
[1725508022018,110.1693,132.23,132.1,7.57]
[1725508022319,60.1693,132.23,132.11,7.5693]
[1725508024413,7.5665,132.17,132.11,7.5693]
[1725508027113,7.5666,132.16,132.11,7.5693]
[1725508027736,7.5666,132.16,132.1,26.4947]
[1725508028113,7.5671,132.15,132.1,26.4947]
[1725508029541,7.5684,132.13,132.08,7.5707]
[1725508030118,16.0289,132.18,132.09,7.5703]
[1725508030317,7.5716,132.08,132.06,15.5304]
[1725508030515,7.57,132.1,132.06,15.5304]
[1725508031147,7.57,132.1,132.05,6.0919]
[1725508032839,7.5694,132.12,132.05,13.6647]
[1725508033049,66.0289,132.18,132.05,13.6647]
[1725508033236,45.0,132.17,132.05,13.6647]
[1725508033622,16.0289,132.18,132.05,6.0919]
[1725508033831,16.0289,132.18,132.07,7.5717]
[1725508033832,7.5684,132.13,132.07,7.5717]
[1725508034035,7.5689,132.12,132.07,7.5717]
[1725508034243,7.5689,132.12,132.06,18.9305]
[1725508035029,16.0289,132.18,132.08,7.5711]
[1725508035238,45.0,132.17,132.08,7.5711]
[1725508035735,45.0,132.17,132.06,26.5023]
[1725508035942,7.5694,132.11,132.06,26.5023]
[1725508036442,7.5688,132.13,132.07,7.5717]
[1725508037449,16.0289,132.18,132.09,7.5705]
[1725508037849,16.0289,132.18,132.08,15.8856]
[1725508038030,16.0289,132.18,132.08,23.4567]
[1725508038234,7.5677,132.14,132.08,23.4567]
[1725508038855,7.5672,132.15,132.1,7.5699]
[1725508039040,7.5666,132.16,132.1,7.5699]
[1725508041038,7.5677,132.14,132.09,7.5705]
[1725508042139,16.0289,132.18,132.1,9.08352565]
[1725508042337,45.0,132.17,132.1,7.5699]
[1725508042744,45.0,132.17,132.11,1.51355552]
[1725508043233,7.5672,132.15,132.11,1.51355552]
[1725508043858,7.5672,132.15,132.1,7.5699]
[1725508045537,7.5672,132.15,132.11,1.51346903]
[1725508045750,7.5672,132.15,132.1,7.5699]
[1725508047653,16.5353,132.21,132.1,18.924]
[1725508047972,19.82758269,132.21,132.1,26.4939]
[1725508049062,45.0,132.2,132.11,7.5693]
[1725508049261,22.8318,132.19,132.06,6.5409]
[1725508049446,111.5353,132.18,132.06,6.5409]
[1725508051468,7.5702,132.1,132.04,15.6191]
[1725508051839,7.5708,132.09,132.04,15.6191]
[1725508052147,15.7562,132.13,132.04,15.6191]
[1725508052148,7.5699,132.11,132.04,15.6191]
[1725508052345,7.5701,132.1,132.04,15.6191]
[1725508054957,7.5708,132.09,132.04,13.6191]
[1725508055756,15.7562,132.13,132.04,21.1925]
[1725508055958,45.0,132.12,132.04,21.1925]
[1725508056771,45.0,132.12,132.05,7.5727]
[1725508057303,7.5705,132.09,132.04,13.6191]
[1725508057443,45.0,132.12,132.04,13.6191]
[1725508057647,7.5718,132.07,132.04,13.6191]
[1725508058076,7.5711,132.09,132.04,13.6191]
[1725508061385,7.5714,132.08,132.03,7.574]
[1725508062250,7.5721,132.07,132.02,25.2787]
[1725508062459,7.5721,132.07,132.02,32.8531]
[1725508063057,45.0,132.12,132.02,32.8531]
[1725508064172,7.5717,132.07,132.02,32.8531]
[1725508064352,7.5724,132.06,132.02,7.85670487]
[1725508064673,7.573,132.05,132.02,6.3422]
[1725508064881,7.573,132.05,132.01,16.1984]
[1725508068171,7.5723,132.06,132.01,16.1984]
[1725508068684,7.5723,132.06,132.01,23.7733]
[1725508068883,7.5716,132.08,132.01,16.1984]
[1725508069082,7.5699,132.11,132.02,8.01969182]
[1725508069294,16.3889,132.17,132.03,15.1295]
[1725508069576,7.5684,132.13,132.08,7.5711]
[1725508070462,7.5678,132.14,132.09,7.5705]
[1725508070658,7.5678,132.14,132.09,30.0783]
[1725508071276,7.5678,132.14,132.1,0.57667435]
[1725508071456,7.5678,132.14,132.09,22.5078]